[Event "XX Gran Hotel Bali-A 2023"]
[Site "Benidorm"]
[Date "2023.12.03"]
[Round "3.8"]
[White "Ingunza Curro, Andres"]
[Black "Garcia Ramos, Marcos"]
[Result "1/2-1/2"]
[ECO "A04"]
[WhiteElo "2328"]
[BlackElo "2102"]
[Annotator "RC"]
[PlyCount "63"]
[EventDate "2023.12.02"]
[EventType "swiss"]
[EventCountry "ESP"]
[SourceTitle "playchess.com"]
[Source "ChessBase"]
[SourceQuality "1"]
[TimeControl "5400+30"]

1. Nf3 {[%emt 0:06:14]} c5 {[%emt 0:02:17]} 2. g3 {[%emt 0:03:19]} Nc6 {[%emt 0:06:11]} 3. Bg2 {[%emt 0:00:44]} e5 {[%emt 0:01:10]} 4. O-O {[%emt 0:06:39]} g6 {[%emt 0:00:27]} 5. d3 {[%emt 0:01:30]} Bg7 {[%emt 0:00:16]} 6. e4 {[%emt 0:00:08]} Nge7 {[%emt 0:00:29]} 7. Nc3 {[%emt 0:00:03]} O-O {[%emt 0:02:34]} 8. Nd2 {[%emt 0:00:49]} Rb8 {[%emt 0:01:36]} 9. a4 {[%emt 0:00:17]} d6 {[%emt 0:01:55]} 10. Nc4 {[%emt 0:00:22]} f5 {[%emt 0:21:09]} 11. f4 {[%emt 0:14:11]} Be6 {[%emt 0:04:49]} 12. Nd5 {[%emt 0:05:16]} Bf7 {[%emt 0:02:54]} 13. Re1 {[%emt 0:25:50]} Re8 {[%emt 0:07:23]} 14. Be3 {[%emt 0:15:52]} Qd7 {[%emt 0:10:43]} 15. Qd2 {[%emt 0:06:52]} exf4 {[%emt 0:07:40]} 16. Bxf4 {[%emt 0:03:47]} Nxd5 {[%emt 0:01:13]} 17. exd5 {[%emt 0:00:38]} Ne5 {[%emt 0:00:33]} 18. c3 {[%emt 0:01:32]} b6 {[%emt 0:09:36]} 19. b3 {[%emt 0:01:52]} Nxc4 {[%emt 0:06:45]} 20. dxc4 {[%emt 0:00:13]} Rxe1+ {[%emt 0:02:57]} 21. Rxe1 {[%emt 0:04:52]} Re8 {[%emt 0:00:15]} 22. Rxe8+ {[%emt 0:00:00]} Bxe8 {[%emt 0:00:09]} 23. Kf2 {[%emt 0:00:00]} Qe7 {[%emt 0:00:10]} 24. Bf3 {[%emt 0:00:00]} Bd7 {[%emt 0:00:10]} 25. h4 {[%emt 0:00:00]} Kf7 {[%emt 0:00:26]} 26. h5 {[%emt 0:00:04]} Be5 {[%emt 0:00:28]} 27. Bxe5 {[%emt 0:01:36]} Qxe5 {[%emt 0:00:33]} 28. Qh6 {[%emt 0:00:27]} Qg7 {[%emt 0:00:26]} 29. Qf4 {[%emt 0:00:33]} Qe5 {[%emt 0:00:34]} 30. Qh6 {[%emt 0:00:16]} Qg7 {[%emt 0:00:06]} 31. Qf4 {[%emt 0:00:40]} Qe5 {[%emt 0:00:05]} 32. Qh6 {[%emt 0:01:16]} 1/2-1/2

[Event "XX Gran Hotel Bali-A 2023"]
[Site "Benidorm"]
[Date "2023.12.03"]
[Round "3.9"]
[White "Madina Yadarola, Martin"]
[Black "Goluch, Piotr"]
[Result "1-0"]
[ECO "B12"]
[WhiteElo "2093"]
[BlackElo "2309"]
[Annotator "RC"]
[PlyCount "85"]
[EventDate "2023.12.02"]
[EventType "swiss"]
[EventCountry "ESP"]
[SourceTitle "playchess.com"]
[Source "ChessBase"]
[SourceQuality "1"]
[TimeControl "5400+30"]

1. e4 {[%emt 0:02:15]} c6 {[%emt 0:00:13]} 2. d4 {[%emt 0:00:16]} d5 {[%emt 0:00:05]} 3. e5 {[%emt 0:00:39]} c5 {[%emt 0:00:26]} 4. dxc5 {[%emt 0:00:13]} e6 {[%emt 0:00:10]} 5. Be3 {[%emt 0:01:22]} Nd7 {[%emt 0:04:56]} 6. Bb5 {[%emt 0:01:21]} Ne7 {[%emt 0:07:59]} 7. Nf3 {[%emt 0:02:53]} Nc6 {[%emt 0:00:49]} 8. O-O {[%emt 0:04:21]} Bxc5 {[%emt 0:00:41]} 9. Bxc5 {[%emt 0:02:27]} Nxc5 {[%emt 0:00:04]} 10. c4 {[%emt 0:03:16]} O-O {[%emt 0:01:20]} 11. Nc3 {[%emt 0:12:58]} dxc4 {[%emt 0:08:58]} 12. Bxc4 {[%emt 0:02:08]} a6 {[%emt 0:03:05]} 13. Rc1 {[%emt 0:03:29]} Qe7 {[%emt 0:05:24]} 14. Qc2 {[%emt 0:04:20]} b5 {[%emt 0:02:59]} 15. Be2 {[%emt 0:01:06]} Nb4 {[%emt 0:05:36]} 16. Nd5 {[%emt 0:02:46]} exd5 {[%emt 0:07:45]} 17. Qxc5 {[%emt 0:00:09]} Qxc5 {[%emt 0:00:03]} 18. Rxc5 {[%emt 0:00:15]} Nxa2 {[%emt 0:00:23]} 19. Nd4 {[%emt 0:00:06]} Nb4 {[%emt 0:01:22]} 20. Rc7 {[%emt 0:05:37]} Rb8 {[%emt 0:48:12]} 21. f4 {[%emt 0:04:52]} g6 {[%emt 0:00:00]} 22. g4 {[%emt 0:03:53]} a5 {[%emt 0:00:00]} 23. Rfc1 {[%emt 0:02:32]} Ba6 {[%emt 0:00:00]} 24. f5 {[%emt 0:06:46]} Rbe8 {[%emt 0:00:00]} 25. Nc6 {[%emt 0:08:44]} Nxc6 {[%emt 0:00:00]} 26. R1xc6 {[%emt 0:00:07]} Rc8 {[%emt 0:00:00]} 27. Rxc8 {[%emt 0:07:14]} Bxc8 {[%emt 0:00:00]} 28. Bd3 {[%emt 0:00:25]} Re8 {[%emt 0:00:00]} 29. Kf2 {[%emt 0:01:19]} d4 {[%emt 0:00:00]} 30. Rc7 {[%emt 0:00:26]} b4 {[%emt 0:01:09]} 31. Bc4 {[%emt 0:02:30]} Rf8 {[%emt 0:00:39]} 32. e6 {[%emt 0:01:20]} fxe6 {[%emt 0:00:54]} 33. Rxc8 {[%emt 0:00:05]} gxf5 {[%emt 0:00:03]} 34. Bxe6+ {[%emt 0:01:06]} Kg7 {[%emt 0:00:01]} 35. Rxf8 {[%emt 0:00:15]} Kxf8 {[%emt 0:00:04]} 36. Bxf5 {[%emt 0:00:22]} h5 {[%emt 0:00:56]} 37. g5 {[%emt 0:00:28]} h4 {[%emt 0:00:17]} 38. Kf3 {[%emt 0:00:46]} a4 {[%emt 0:00:05]} 39. Bb1 {[%emt 0:05:47]} Kg7 {[%emt 0:00:04]} 40. Ke4 {[%emt 0:01:00]} Kg6 {[%emt 0:01:17]} 41. Kxd4+ {[%emt 0:00:09]} Kxg5 {[%emt 0:00:04]} 42. Kc4 {[%emt 0:00:15]} a3 {[%emt 0:00:06]} 43. b3 {[%emt 0:00:08]} 1-0

[Event "XX Gran Hotel Bali-A 2023"]
[Site "Benidorm"]
[Date "2023.12.03"]
[Round "3.10"]
[White "Lorenzo Duran, Marcos"]
[Black "Utsab Chatterjee"]
[Result "0-1"]
[ECO "D55"]
[WhiteElo "2086"]
[BlackElo "2302"]
[Annotator "RC"]
[PlyCount "66"]
[EventDate "2023.12.02"]
[EventType "swiss"]
[EventCountry "ESP"]
[SourceTitle "playchess.com"]
[Source "ChessBase"]
[SourceQuality "1"]
[TimeControl "5400+30"]

1. c4 {[%emt 0:00:04]} e6 {[%emt 0:04:04]} 2. Nc3 {[%emt 0:00:34]} d5 {[%emt 0:00:12]} 3. d4 {[%emt 0:00:07]} Nf6 {[%emt 0:00:04]} 4. Nf3 {[%emt 0:00:56]} Be7 {[%emt 0:00:15]} 5. Bg5 {[%emt 0:00:39]} O-O {[%emt 0:00:19]} 6. e3 {[%emt 0:00:16]} h6 {[%emt 0:00:42]} 7. Bxf6 {[%emt 0:01:14]} Bxf6 {[%emt 0:00:01]} 8. h4 {[%emt 0:00:54]} c5 {[%emt 0:03:39]} 9. g4 {[%emt 0:01:20]} cxd4 {[%emt 0:00:49]} 10. exd4 {[%emt 0:00:11]} e5 {[%emt 0:13:05]} 11. g5 {[%emt 0:02:37]} exd4 {[%emt 0:00:33]} 12. Nxd5 {[%emt 0:01:08]} Re8+ {[%emt 0:01:53]} 13. Be2 {[%emt 0:00:20]} Be5 {[%emt 0:15:59]} 14. gxh6 {[%emt 0:02:50]} Nc6 {[%emt 0:12:06]} 15. Rg1 {[%emt 0:16:03]} g6 {[%emt 0:02:50]} 16. Qd3 {[%emt 0:04:16]} Be6 {[%emt 0:07:26]} 17. Rxg6+ {[%emt 0:10:17]} Kh8 {[%emt 0:00:07]} 18. Rg7 {[%emt 0:03:35]} Bxg7 {[%emt 0:00:52]} 19. hxg7+ {[%emt 0:05:15]} Kxg7 {[%emt 0:00:30]} 20. O-O-O {[%emt 0:02:58]} Bxd5 {[%emt 0:03:08]} 21. cxd5 {[%emt 0:02:14]} Qxd5 {[%emt 0:01:15]} 22. Rg1+ {[%emt 0:03:35]} Kf6 {[%emt 0:06:44]} 23. Rg4 {[%emt 0:11:51]} Qxa2 {[%emt 0:04:17]} 24. Rf4+ {[%emt 0:05:12]} Kg7 {[%emt 0:01:23]} 25. Bd1 {[%emt 0:04:40]} Qa1+ {[%emt 0:01:11]} 26. Kd2 {[%emt 0:00:10]} Qxb2+ {[%emt 0:00:02]} 27. Bc2 {[%emt 0:00:25]} Qc3+ {[%emt 0:00:05]} 28. Qxc3 {[%emt 0:00:15]} dxc3+ {[%emt 0:00:01]} 29. Kxc3 {[%emt 0:00:14]} Ne5 {[%emt 0:00:13]} 30. Nd4 {[%emt 0:00:52]} Rac8+ {[%emt 0:00:07]} 31. Kb3 {[%emt 0:00:32]} Red8 {[%emt 0:04:04]} 32. Nf5+ {[%emt 0:01:27]} Kh8 {[%emt 0:00:25]} 33. Nh6 {[%emt 0:03:54]} Rd6 {[%emt 0:00:19]} 0-1

[Event "XX Gran Hotel Bali-A 2023"]
[Site "Benidorm"]
[Date "2023.12.03"]
[Round "3.11"]
[White "Potluri Saye Srreezza"]
[Black "Korneev Leskova, Svyatoslav"]
[Result "0-1"]
[ECO "C18"]
[WhiteElo "1871"]
[BlackElo "2252"]
[Annotator "RC"]
[PlyCount "86"]
[EventDate "2023.12.02"]
[EventType "swiss"]
[EventCountry "ESP"]
[SourceTitle "playchess.com"]
[Source "ChessBase"]
[SourceQuality "1"]
[TimeControl "5400+30"]

1. e4 {[%emt 0:04:26]} e6 {[%emt 0:00:09]} 2. d4 {[%emt 0:00:06]} d5 {[%emt 0:00:05]} 3. Nc3 {[%emt 0:00:04]} Bb4 {[%emt 0:00:04]} 4. e5 {[%emt 0:00:05]} c5 {[%emt 0:00:04]} 5. a3 {[%emt 0:00:06]} Bxc3+ {[%emt 0:00:06]} 6. bxc3 {[%emt 0:00:06]} Qa5 {[%emt 0:00:05]} 7. Bd2 {[%emt 0:01:11]} Qa4 {[%emt 0:00:05]} 8. Qg4 {[%emt 0:00:26]} g6 {[%emt 0:02:51]} 9. Nf3 {[%emt 0:00:29]} c4 {[%emt 0:00:58]} 10. Ra2 {[%emt 0:00:21]} Qb5 {[%emt 0:01:06]} 11. Ra1 {[%emt 0:18:08]} Qb2 {[%emt 0:00:11]} 12. Rc1 {[%emt 0:00:18]} Bd7 {[%emt 0:01:32]} 13. Be2 {[%emt 0:00:25]} Ba4 {[%emt 0:02:54]} 14. Ng5 {[%emt 0:20:29]} Nc6 {[%emt 0:05:58]} 15. Qf4 {[%emt 0:10:17]} Nd8 {[%emt 0:01:23]} 16. Bd1 {[%emt 0:00:42]} h6 {[%emt 0:00:45]} 17. Qh4 {[%emt 0:00:24]} Qxa3 {[%emt 0:09:20]} 18. O-O {[%emt 0:01:33]} Qe7 {[%emt 0:07:30]} 19. f4 {[%emt 0:09:05]} Rh7 {[%emt 0:11:45]} 20. Ra1 {[%emt 0:05:05]} Bd7 {[%emt 0:01:07]} 21. Qh3 {[%emt 0:01:03]} Rg7 {[%emt 0:00:41]} 22. Nf3 {[%emt 0:00:07]} Rh7 {[%emt 0:11:55]} 23. Bc1 {[%emt 0:01:34]} Qf8 {[%emt 0:00:08]} 24. Ba3 {[%emt 0:00:16]} Qg7 {[%emt 0:00:06]} 25. Be2 {[%emt 0:01:03]} g5 {[%emt 0:02:59]} 26. Nd2 {[%emt 0:05:08]} b5 {[%emt 0:04:45]} 27. Bh5 {[%emt 0:03:37]} Ne7 {[%emt 0:00:44]} 28. g4 {[%emt 0:03:47]} Ng6 {[%emt 0:00:23]} 29. Bxg6 {[%emt 0:03:55]} Qxg6 {[%emt 0:00:12]} 30. f5 {[%emt 0:00:10]} Qg7 {[%emt 0:02:31]} 31. Qh5 {[%emt 0:04:13]} Nc6 {[%emt 0:00:51]} 32. Bc5 {[%emt 0:00:44]} Kd8 {[%emt 0:03:07]} 33. f6 {[%emt 0:03:45]} Qg8 {[%emt 0:00:35]} 34. Rfb1 {[%emt 0:00:27]} a6 {[%emt 0:01:15]} 35. Rxb5 {[%emt 0:00:22]} Nxd4 {[%emt 0:00:28]} 36. Rb6 {[%emt 0:02:18]} Ne2+ {[%emt 0:00:13]} 37. Kf2 {[%emt 0:00:28]} Nf4 {[%emt 0:00:07]} 38. Rbxa6 {[%emt 0:01:38]} Rxa6 {[%emt 0:00:20]} 39. Rxa6 {[%emt 0:00:10]} Kc7 {[%emt 0:04:48]} 40. Ra7+ {[%emt 0:00:23]} Kc6 {[%emt 0:00:14]} 41. Be7 {[%emt 0:01:01]} Qb8 {[%emt 0:01:53]} 42. Ra6+ {[%emt 0:00:49]} Kb7 {[%emt 0:00:35]} 43. Ra2 {[%emt 0:00:10]} Qxe5 {[%emt 0:00:20]} 0-1

[Event "XX Gran Hotel Bali-A 2023"]
[Site "Benidorm"]
[Date "2023.12.03"]
[Round "3.12"]
[White "Ishvi Aggarwal"]
[Black "Solodovnichenko, Yuri"]
[Result "1/2-1/2"]
[ECO "E60"]
[WhiteElo "1765"]
[BlackElo "2490"]
[Annotator "RC"]
[PlyCount "95"]
[EventDate "2023.12.02"]
[EventType "swiss"]
[EventCountry "ESP"]
[SourceTitle "playchess.com"]
[Source "ChessBase"]
[SourceQuality "1"]
[TimeControl "5400+30"]

1. d4 {[%emt 0:03:32]} g6 {[%emt 0:00:02]} 2. c4 {[%emt 0:00:15]} Bg7 {[%emt 0:00:05]} 3. g3 {[%emt 0:00:03]} c5 {[%emt 0:00:05]} 4. d5 {[%emt 0:00:04]} d6 {[%emt 0:03:21]} 5. Bg2 {[%emt 0:00:04]} b5 {[%emt 0:02:01]} 6. cxb5 {[%emt 0:00:27]} a6 {[%emt 0:00:42]} 7. bxa6 {[%emt 0:00:07]} Nf6 {[%emt 0:00:33]} 8. Nc3 {[%emt 0:00:36]} O-O {[%emt 0:00:18]} 9. Nf3 {[%emt 0:00:04]} Nxa6 {[%emt 0:00:36]} 10. O-O {[%emt 0:00:49]} Bf5 {[%emt 0:00:11]} 11. Ne1 {[%emt 0:08:15]} Qb6 {[%emt 0:05:16]} 12. e4 {[%emt 0:02:15]} Bd7 {[%emt 0:01:26]} 13. Nc2 {[%emt 0:14:58]} Nb4 {[%emt 0:09:48]} 14. h3 {[%emt 0:06:33]} Rfb8 {[%emt 0:04:26]} 15. Nxb4 {[%emt 0:00:14]} Qxb4 {[%emt 0:00:38]} 16. Rb1 {[%emt 0:00:52]} Ne8 {[%emt 0:02:09]} 17. Bd2 {[%emt 0:00:30]} Ba4 {[%emt 0:13:37]} 18. Qc1 {[%emt 0:07:36]} Bb5 {[%emt 0:01:38]} 19. a3 {[%emt 0:13:44]} Qb3 {[%emt 0:00:26]} 20. Nxb5 {[%emt 0:00:44]} Rxb5 {[%emt 0:00:19]} 21. Bc3 {[%emt 0:01:02]} Rab8 {[%emt 0:03:40]} 22. Bxg7 {[%emt 0:00:27]} Kxg7 {[%emt 0:00:06]} 23. Re1 {[%emt 0:01:30]} Nf6 {[%emt 0:10:02]} 24. Bf1 {[%emt 0:02:55]} R5b7 {[%emt 0:00:07]} 25. Re3 {[%emt 0:01:18]} Qa4 {[%emt 0:01:26]} 26. Bc4 {[%emt 0:00:47]} Nd7 {[%emt 0:00:06]} 27. b3 {[%emt 0:02:55]} Qa5 {[%emt 0:04:29]} 28. a4 {[%emt 0:05:24]} Rb4 {[%emt 0:01:01]} 29. Bb5 {[%emt 0:01:05]} Nf6 {[%emt 0:00:24]} 30. Qc3 {[%emt 0:01:46]} Kg8 {[%emt 0:02:47]} 31. Rc1 {[%emt 0:01:21]} Qa7 {[%emt 0:02:53]} 32. Rce1 {[%emt 0:02:52]} Rd4 {[%emt 0:01:56]} 33. Kg2 {[%emt 0:01:21]} h5 {[%emt 0:04:19]} 34. f4 {[%emt 0:02:53]} Qc7 {[%emt 0:01:40]} 35. Bc4 {[%emt 0:03:49]} Rb4 {[%emt 0:00:15]} 36. Kh2 {[%emt 0:03:58]} Kh7 {[%emt 0:03:01]} 37. e5 {[%emt 0:02:52]} Nxd5 {[%emt 0:00:11]} 38. Bxd5 {[%emt 0:00:02]} Rxd5 {[%emt 0:00:08]} 39. exd6 {[%emt 0:00:17]} Qxd6 {[%emt 0:00:08]} 40. Rxe7 {[%emt 0:00:20]} Rd2+ {[%emt 0:00:16]} 41. Kg1 {[%emt 0:03:29]} Rbd4 {[%emt 0:10:57]} 42. Rxf7+ {[%emt 0:01:26]} Kg8 {[%emt 0:01:58]} 43. Qe3 {[%emt 0:02:06]} Kxf7 {[%emt 0:00:11]} 44. Qe8+ {[%emt 0:00:01]} Kf6 {[%emt 0:01:32]} 45. Qh8+ {[%emt 0:00:12]} Kf7 {[%emt 0:00:03]} 46. Qe8+ {[%emt 0:00:08]} Kf6 {[%emt 0:00:13]} 47. Qh8+ {[%emt 0:00:03]} Kf7 {[%emt 0:00:02]} 48. Qe8+ {[%emt 0:06:29]} 1/2-1/2

[Event "XX Gran Hotel Bali-A 2023"]
[Site "Benidorm"]
[Date "2023.12.04"]
[Round "4.1"]
[White "Utsab Chatterjee"]
[Black "Grigoryan, Karen H."]
[Result "0-1"]
[ECO "B30"]
[WhiteElo "2302"]
[BlackElo "2646"]
[Annotator "TA"]
[PlyCount "94"]
[EventDate "2023.12.02"]
[EventType "swiss"]
[EventCountry "ESP"]
[SourceTitle "playchess.com"]
[Source "ChessBase"]
[SourceQuality "1"]
[TimeControl "5400+30"]

{[%evp 11,94,29,31,30,43,39,37,41,46,32,29,23,17,16,18,18,19,0,0,0,0,0,0,0,0,0,0,0,17,12,18,0,0,3,3,0,0,0,0,0,0,0,0,-6,-6,-16,0,0,0,-7,-7,-7,-7,-7,-7,-7,-8,-8,-7,-136,-117,-171,-125,-120,-106,-280,-276,-274,-243,-258,-227,-1272,-1235,-1235,-1235,-1416,-1346,-1280,-1160,-2082,-2076,-1760,-1758,-1484,-1472]} 1. e4 {[%emt 0:00:01]} c5 {[%emt 0:04:42]} 2. Nf3 {[%emt 0:00:30]} Nc6 {[%emt 0:00:30]} 3. Bb5 {[%emt 0:00:39]} e6 {[%emt 0:00:45]} 4. O-O {[%emt 0:00:36]} Nge7 {[%emt 0:00:10]} 5. d4 {[%emt 0:00:47]} cxd4 {[%emt 0:00:08]} 6. Nxd4 {[%emt 0:00:04]} Qb6 {[%emt 0:04:30] 6...Ng6 is the modern continuation.} 7. Nxc6 {[%emt 0:00:40] B30: Sicilian: 2...Nc6 3 Bb5, lines without ...g6.} bxc6 {[%emt 0:02:43]} 8. Be2 {[%emt 0:02:20]} d5 {[%emt 0:02:08]} 9. Nc3 {[%emt 0:00:19] White is slightly better.} Ba6 {[%emt 0:05:19] [#]} 10. b3 $146 {[%emt 0:11:16]} ({Predecessor:} 10. exd5 cxd5 11. a4 Bxe2 12. Qxe2 Rd8 13. Rd1 Rd7 14. Ra3 Nc6 15. Rb3 Qd8 16. Nb5 {0-1 Acarer,O-Jung,R KO-18506 freechess.de 2014}) 10... Ng6 {[%emt 0:05:25]} 11. Be3 {[%emt 0:05:35]} Bxe2 {[%emt 0:06:12]} 12. Qxe2 {[%emt 0:00:49]} Qa5 {[%emt 0:03:12]} 13. Na4 {[%emt 0:00:29]} Be7 {[%emt 0:02:57]} 14. c4 {[%emt 0:20:12]} dxe4 {[%emt 0:11:17]} 15. Bd2 {[%emt 0:00:37]} Qf5 {[%emt 0:00:45]} 16. Rae1 {[%emt 0:05:30]} Rd8 {[%emt 0:01:05]} 17. Bc3 {[%emt 0:00:32]} f6 {[%emt 0:03:42]} 18. Qxe4 {[%emt 0:13:05]} Qxe4 {[%emt 0:00:27]} 19. Rxe4 {[%emt 0:00:01]} Kf7 {[%emt 0:00:45]} 20. f4 {[%emt 0:01:06]} Rhe8 {[%emt 0:10:29]} 21. Rfe1 {[%emt 0:11:25]} Bd6 {[%emt 0:05:57]} 22. g3 {[%emt 0:00:09]} e5 {[%emt 0:00:46]} 23. fxe5 {[%emt 0:00:58]} Bxe5 {[%emt 0:00:50]} 24. Ba5 {[%emt 0:00:45]} Bd4+ {[%emt 0:07:52]} 25. Kg2 {[%emt 0:00:18]} Rxe4 {[%emt 0:00:12]} 26. Rxe4 {[%emt 0:00:01]} Rd7 {[%emt 0:00:37]} 27. Re2 {[%emt 0:04:09]} Ne5 {[%emt 0:00:57]} 28. Nc3 {[%emt 0:03:02]} f5 {[%emt 0:07:36]} 29. Rd2 {[%emt 0:00:44]} g5 {[%emt 0:01:01]} 30. Ne2 {[%emt 0:01:10]} c5 {[%emt 0:00:08]} 31. Bc3 {[%emt 0:00:57]} Bxc3 {[%emt 0:02:24]} 32. Rxd7+ {[%emt 0:00:05]} Nxd7 {[%emt 0:00:06]} 33. Nxc3 $11 {[%emt 0:00:02][%mdl 4096] Endgame KN-KN} Ke6 {[%emt 0:00:15]} 34. Kf3 {[%emt 0:05:47]} Ke5 {[%emt 0:00:57]} 35. h4 {[%emt 0:00:56] [#]} (35. Nd5 $11 {remains equal.}) 35... g4+ $1 $17 {[%emt 0:01:58]} 36. Ke3 {[%emt 0:00:09] [#]} (36. Kg2 $17) 36... Nf6 $1 $19 {[%emt 0:00:14] White must now prevent ...Ne4.} 37. a3 {[%emt 0:01:32]} a5 {[%emt 0:02:56][%cal Ba7a5,Ba5a4][%mdl 32]} 38. Na4 $2 {[%emt 0:02:40] Now White is beyond hope.} (38. Nb5 $17 {was the only chance.}) 38... Ne4 {[%emt 0:01:02]} 39. Nb2 {[%emt 0:00:25]} Nxg3 {[%emt 0:00:21] aiming for ...f4+.} 40. Nd3+ {[%emt 0:00:04]} Kd6 {[%emt 0:00:06]} 41. b4 $2 {[%emt 0:00:24]} (41. Kf4 Ne2+ 42. Kxf5) 41... cxb4 {[%emt 0:00:15] Black is clearly winning.} 42. axb4 {[%emt 0:00:08]} a4 {[%emt 0:01:17]} 43. c5+ {[%emt 0:00:15]} Kc6 {[%emt 0:01:02]} 44. Ne5+ {[%emt 0:05:17]} Kb5 {[%emt 0:02:59] Threatens to win with ...a3.} 45. c6 {[%emt 0:00:06]} Ne4 {[%emt 0:00:26]} (45... Kxb4 46. c7 Nf1+ 47. Kd3) 46. c7 {[%emt 0:00:18]} Nd6 {[%emt 0:00:05] Hoping for ...a3.} (46... Kxb4 47. c8=Q (47. c8=B $2 {is the wrong capture.} a3 $19) 47... Nc5 48. Qb8+ Kc3 49. Qc7 f4+ 50. Kxf4 Kd4 51. Qd6+ {[%mdl 64] Deflection} Kc3 52. Qxc5+) 47. Kd4 {[%emt 0:00:15]} Kb6 {[%emt 0:00:53] Weighted Error Value: White=0.42/Black=0.01 (flawless)} 0-1

[Event "XX Gran Hotel Bali-A 2023"]
[Site "Benidorm"]
[Date "2023.12.04"]
[Round "4.2"]
[White "Korneev Leskova, Svyatoslav"]
[Black "Trigo Urquijo, Sergio"]
[Result "1-0"]
[ECO "A37"]
[WhiteElo "2252"]
[BlackElo "2400"]
[Annotator "RC"]
[PlyCount "75"]
[EventDate "2023.12.02"]
[EventType "swiss"]
[EventCountry "ESP"]
[SourceTitle "playchess.com"]
[Source "ChessBase"]
[SourceQuality "1"]
[TimeControl "5400+30"]

1. c4 {[%emt 0:00:03]} g6 {[%emt 0:00:52]} 2. g3 {[%emt 0:00:11]} Bg7 {[%emt 0:00:42]} 3. Bg2 {[%emt 0:00:08]} c5 {[%emt 0:00:52]} 4. Nc3 {[%emt 0:00:17]} Nc6 {[%emt 0:00:16]} 5. Nf3 {[%emt 0:01:19]} d6 {[%emt 0:00:39]} 6. d3 {[%emt 0:01:05]} Bf5 {[%emt 0:01:31]} 7. h3 {[%emt 0:01:17]} e5 {[%emt 0:01:40]} 8. Bg5 {[%emt 0:02:00]} f6 {[%emt 0:02:52]} 9. Bd2 {[%emt 0:00:06]} Nge7 {[%emt 0:01:10]} 10. a3 {[%emt 0:02:10]} a5 {[%emt 0:04:03]} 11. Qb3 {[%emt 0:03:09]} O-O {[%emt 0:04:41]} 12. Rb1 {[%emt 0:03:16]} Kh8 {[%emt 0:10:54]} 13. O-O {[%emt 0:08:29]} Qd7 {[%emt 0:07:00]} 14. Kh2 {[%emt 0:00:06]} Be6 {[%emt 0:01:02]} 15. Ng1 {[%emt 0:01:41]} a4 {[%emt 0:03:42]} 16. Qd1 {[%emt 0:03:35]} Nd4 {[%emt 0:01:21]} 17. f4 {[%emt 0:10:14]} exf4 {[%emt 0:07:26]} 18. Rxf4 {[%emt 0:06:56]} d5 {[%emt 0:04:27]} 19. cxd5 {[%emt 0:00:17]} Nxd5 {[%emt 0:00:20]} 20. Nxd5 {[%emt 0:03:29]} Bxd5 {[%emt 0:00:13]} 21. Bxd5 {[%emt 0:00:08]} Qxd5 {[%emt 0:00:07]} 22. Bc3 {[%emt 0:05:42]} Rfe8 {[%emt 0:06:12]} 23. e4 {[%emt 0:00:35]} Qd6 {[%emt 0:01:30]} 24. Ne2 {[%emt 0:04:34]} f5 {[%emt 0:06:51]} 25. Nxd4 {[%emt 0:00:37]} cxd4 {[%emt 0:01:50]} 26. Bb4 {[%emt 0:01:40]} Qe6 {[%emt 0:02:11]} 27. exf5 {[%emt 0:06:47]} gxf5 {[%emt 0:04:12]} 28. Qf1 {[%emt 0:00:11]} Qb3 {[%emt 0:07:30]} 29. Rxf5 {[%emt 0:06:56]} Re3 {[%emt 0:00:20]} 30. Rd1 {[%emt 0:01:35]} Rae8 {[%emt 0:02:37]} 31. Rd2 {[%emt 0:01:45]} Qe6 {[%emt 0:01:58]} 32. Rdf2 {[%emt 0:02:58]} Qg6 {[%emt 0:01:06]} 33. R5f3 {[%emt 0:02:16]} Bh6 {[%emt 0:03:41]} 34. Bc5 {[%emt 0:03:10]} Bg7 {[%emt 0:01:13]} 35. Rf8+ {[%emt 0:00:55]} Bxf8 {[%emt 0:01:24]} 36. Rxf8+ {[%emt 0:00:10]} Kg7 {[%emt 0:00:08]} 37. Bxd4+ {[%emt 0:00:07]} R8e5 {[%emt 0:00:51]} 38. Rf3 {[%emt 0:01:12]} 1-0